bitfinex/quotes_SOLUSD_20250811
["timestamp","ask_amount","ask_price","bid_price","bid_amount"]
[1754922837802,0.67,179.78,179.77,5.91719502]
[1754922838014,0.67,179.8,179.77,5.91719502]
[1754922838218,0.67,179.8,179.78,40.3]
[1754922838414,0.03,179.81,179.78,40.3]
[1754922838599,0.73,179.81,179.78,40.3]
[1754922838944,0.03,179.81,179.79,5.91719502]
[1754922839103,0.03,179.81,179.8,46.21719502]
[1754922839104,0.73,179.81,179.8,46.21719502]
[1754922839303,0.7,179.8,179.77,5.91719502]
[1754922839526,0.7,179.8,179.78,40.3]
[1754922839733,0.7,179.8,179.79,5.91719502]
[1754922840238,0.03,179.81,179.78,46.21719502]
[1754922840440,0.7,179.8,179.78,46.21719502]
[1754922840611,0.7,179.8,179.78,40.3]
[1754922840809,0.7,179.8,179.78,46.21719502]
[1754922841019,0.7,179.8,179.78,40.3]
[1754922841225,0.7,179.8,179.78,46.21719502]
[1754922841428,0.7,179.8,179.79,5.91719502]
[1754922841624,0.03,179.81,179.79,5.91719502]
[1754922841835,0.03,179.81,179.8,40.3]
[1754922842452,0.73,179.81,179.8,40.3]
[1754922844052,0.03,179.81,179.8,40.3]
[1754922844530,0.03,179.81,179.8,46.21719502]
[1754922844745,0.03,179.81,179.8,40.3]
[1754922845943,0.03,179.81,179.8,46.21719502]
[1754922846240,0.73,179.81,179.8,40.3]
[1754922847648,0.03,179.81,179.8,40.3]
[1754922847845,0.03,179.81,179.8,46.21719502]
[1754922848526,0.03,179.81,179.8,46.86719502]
[1754922849146,0.03,179.81,179.8,46.21719502]
[1754922849635,0.03,179.81,179.8,51.77893028]
[1754922850220,0.03,179.81,179.8,40.3]
[1754922850418,0.03,179.81,179.8,46.21719502]
[1754922851530,0.03,179.81,179.8,40.3]
[1754922851728,0.03,179.81,179.8,46.21719502]
[1754922852119,0.03,179.81,179.8,51.77893028]
[1754922852817,0.03,179.81,179.8,46.21719502]
[1754922853141,0.03,179.81,179.8,51.77893028]
[1754922853447,0.73,179.81,179.8,40.3]
[1754922853739,0.73,179.81,179.8,46.21719502]
[1754922853740,0.03,179.81,179.8,46.21719502]
[1754922853917,0.03,179.81,179.8,40.3]
[1754922854118,0.73,179.81,179.8,40.28]
[1754922855441,0.03,179.81,179.8,40.28]
[1754922855640,0.03,179.81,179.8,40.93]
[1754922855842,0.03,179.81,179.8,46.19719502]
[1754922856249,0.73,179.81,179.8,40.28]
[1754922856457,0.73,179.81,179.8,46.19719502]
[1754922856458,0.03,179.81,179.8,46.19719502]
[1754922856828,0.03,179.81,179.8,40.28]
[1754922857149,0.03,179.81,179.8,51.75893028]
[1754922857464,0.03,179.81,179.8,52.40893028]
[1754922857950,239.34869384,179.89,179.8,52.40893028]
[1754922857951,10.59302668,179.95,179.84,42.72]
[1754922858151,5.917195,179.95,179.94,5.91719502]
[1754922858351,5.917195,179.95,179.94,26.0]
[1754922858563,0.7,179.95,179.94,26.0]
[1754922858768,0.7,179.95,179.91,2.75915323]
[1754922858769,6.61719502,179.95,179.91,2.75915323]
[1754922859049,0.7,179.94,179.92,40.42]
[1754922859255,0.7,179.93,179.9,2.776]
[1754922859453,5.91719502,179.94,179.92,6.617195]
[1754922859657,5.91719502,179.93,179.9,2.776]
[1754922859864,155.10621557,179.97,179.91,40.42]
[1754922860158,0.7,179.92,179.91,40.42]
[1754922860654,6.61719502,179.92,179.9,2.776]
[1754922860857,6.61719502,179.91,179.9,43.176]
[1754922862851,0.7,179.91,179.9,43.176]
[1754922863434,5.55711978,179.95,179.9,43.176]
[1754922863638,6.61719502,179.94,179.9,43.176]
[1754922863859,5.91719502,179.94,179.9,43.176]
[1754922864064,0.7,179.93,179.9,40.4]
[1754922864359,0.7,179.92,179.9,40.4]
[1754922865059,0.7,179.91,179.9,40.4]
[1754922865264,0.73,179.91,179.9,40.4]
[1754922865832,6.64719502,179.91,179.9,40.4]
[1754922866432,0.73,179.91,179.9,40.4]
[1754922867443,0.03,179.91,179.9,40.4]
[1754922867657,0.03,179.91,179.9,51.87583871]
[1754922867853,0.03,179.91,179.9,45.95864369]
[1754922868061,0.03,179.91,179.9,51.87583871]
[1754922868867,0.68,179.91,179.88,26.0]
[1754922869078,0.68,179.91,179.86,16.692169]
[1754922869079,0.65,179.9,179.86,16.692169]
[1754922869272,0.65,179.89,179.87,40.38]
[1754922869970,0.03,179.91,179.87,46.29719502]
[1754922870138,0.68,179.91,179.87,46.29719502]
[1754922870540,0.65,179.9,179.85,16.693097]
[1754922870764,0.65,179.89,179.86,40.54]
[1754922870935,0.65,179.9,179.87,5.91719502]
[1754922871155,0.03,179.91,179.88,46.59719502]
[1754922871366,0.68,179.91,179.89,5.91719502]
[1754922871671,0.03,179.91,179.9,46.59719502]
[1754922871871,0.03,179.91,179.9,40.68]
[1754922872176,0.03,179.91,179.9,46.59719502]
[1754922872960,0.68,179.91,179.9,40.68]
[1754922873148,0.03,179.91,179.9,40.68]
[1754922873559,0.68,179.91,179.9,40.68]
[1754922876241,0.03,179.91,179.9,40.68]
[1754922877955,0.03,179.91,179.9,46.59719502]
[1754922878143,0.03,179.91,179.9,52.15583871]
[1754922879266,0.03,179.91,179.9,46.23864369]
[1754922879456,0.03,179.91,179.9,52.15583871]
[1754922880564,0.03,179.91,179.9,68.84429271]
[1754922883160,0.03,179.91,179.9,28.16429271]
[1754922883363,0.03,179.91,179.9,68.66429271]
[1754922883954,0.03,179.91,179.9,74.58148773]
[1754922884648,0.03,179.91,179.9,68.66429271]
[1754922885042,0.03,179.91,179.9,68.64429271]
[1754922885248,0.03,179.91,179.9,28.16429271]
[1754922885639,0.03,179.91,179.9,62.70709769]
[1754922885844,0.03,179.91,179.9,68.62429271]
[1754922888262,0.03,179.91,179.9,74.54148773]
[1754922890952,0.65,179.98,179.93,26.0]
[1754922891153,145.7,179.99,179.97,5.91719502]
[1754922891510,0.65,180.01,179.98,46.31719502]
[1754922891803,146.35,180.03,180.0,5.91719502]
[1754922891960,0.65,180.03,180.02,5.91719502]
[1754922892153,0.65,180.05,180.01,40.4]
[1754922892383,0.65,180.04,180.02,5.91719502]
[1754922892585,5.55366202,180.07,180.03,40.4]
[1754922892788,11.47085704,180.07,180.03,40.4]
[1754922892996,5.91719502,180.06,180.03,40.4]
[1754922893203,0.65,180.05,180.03,40.4]
[1754922893702,5.91719502,180.04,179.98,22.59822602]
[1754922893999,0.65,180.03,179.99,40.4]
[1754922894182,0.65,180.02,179.99,46.31719502]
[1754922894383,5.91719502,180.04,179.99,46.31719502]
[1754922894384,0.65,180.01,179.99,46.31719502]
[1754922894968,15.10621557,180.09,179.99,46.31719502]
[1754922895198,0.65,180.03,180.01,5.91719502]
[1754922895496,0.65,180.05,180.02,46.29719502]
[1754922895696,0.65,180.04,180.02,46.29719502]
[1754922896197,20.65899473,180.09,180.03,5.91719502]
[1754922896397,0.65,180.07,180.04,46.31719502]
[1754922896799,0.65,180.06,180.04,40.4]
[1754922897401,11.46997418,180.09,180.04,40.4]
[1754922897599,15.10621557,180.13,180.04,5.55406348]
[1754922897803,0.65,180.08,180.05,40.4]
[1754922898100,5.91719502,180.06,180.05,40.4]
[1754922898284,6.56719502,180.06,180.05,40.4]
[1754922898483,6.56719502,180.06,180.01,6.41719502]
[1754922898678,0.71,180.05,180.02,5.91719502]
[1754922898895,0.71,180.05,180.03,46.31719502]
[1754922899201,0.71,180.07,180.03,46.31719502]
[1754922899391,5.91719502,180.07,180.03,40.4]
[1754922899588,0.71,180.06,180.03,40.4]
[1754922899795,0.71,180.05,180.03,40.4]
[1754922900221,6.62719502,180.04,180.01,0.5]
[1754922900498,5.91719502,180.02,180.01,0.5]
[1754922900689,5.91719502,180.02,180.01,40.4]
[1754922900890,140.0,180.02,180.01,40.4]
[1754922901104,0.71,180.03,180.01,40.4]
[1754922901280,0.71,180.05,180.01,46.31719502]
[1754922901483,0.71,180.04,180.01,40.4]
[1754922901787,0.71,180.03,180.01,40.4]
[1754922903403,151.25378126,180.06,180.02,0.5]
[1754922903706,145.7,180.06,180.02,0.5]
[1754922904035,145.7,180.06,180.04,5.91719502]
[1754922904211,28.98522619,180.13,180.02,0.5]
[1754922904212,0.71,180.11,180.05,40.52]
[1754922904419,5.55092978,180.15,180.09,26.0]
[1754922904582,0.71,180.14,180.1,40.86]
[1754922904786,0.71,180.14,180.11,41.1]
[1754922904997,0.71,180.13,180.04,26.0]
[1754922905200,0.71,180.13,180.08,26.0]
[1754922905396,6.26182643,180.13,180.09,41.1]
[1754922905587,6.26182643,180.13,180.1,41.1]
[1754922905588,0.71,180.12,180.1,41.1]
[1754922905788,0.71,180.11,180.1,41.1]
[1754922906009,0.71,180.15,180.1,41.1]
[1754922906318,0.71,180.15,180.0,15.91719502]
[1754922906319,15.81621557,180.14,180.0,5.55555555]
[1754922906622,5.550963,180.15,179.93,42.27767055]
[1754922906623,15.10621557,180.09,180.01,41.58]
[1754922906818,15.10621557,180.07,179.99,41.58]
[1754922907030,5.91719502,180.0,179.89,9.93042061]
[1754922907190,155.10621557,180.05,179.9,5.91719502]
[1754922907389,5.91719502,179.97,179.92,41.106215]
[1754922907609,6.26602748,179.99,179.94,5.91719502]
[1754922907610,0.71,179.99,179.94,5.91719502]
[1754922907921,0.71,179.98,179.92,15.106215]
[1754922908119,5.91719502,179.95,179.93,41.6]
[1754922908285,0.71,179.98,179.94,41.6]
[1754922908486,0.71,179.97,179.94,41.6]
[1754922908709,6.26462978,180.03,179.96,5.91719502]
[1754922908915,6.26462978,180.03,179.94,67.6]
[1754922908916,0.71,180.03,179.97,26.0]
[1754922909187,45.79910215,180.1,179.97,26.0]
[1754922909188,0.71,180.05,180.02,5.91719502]
[1754922909489,5.55222368,180.11,180.04,5.91719502]
[1754922909791,0.71,180.11,180.07,26.0]
[1754922910002,0.71,180.11,179.98,15.10621557]
[1754922910003,0.71,180.1,179.98,5.5561729]
[1754922910183,0.71,180.1,180.02,26.0]
[1754922910382,9.42960792,180.05,180.03,41.66]
[1754922910600,10.13960792,180.04,180.03,41.66]
[1754922910797,0.71,180.04,180.03,41.66]
[1754922911015,9.42960792,180.04,180.03,41.66]
[1754922911199,0.03,180.06,180.03,51.08960792]
[1754922911404,0.03,180.06,180.05,26.0]
[1754922911598,0.03,180.06,180.05,31.55401277]
[1754922911806,0.03,180.06,180.05,40.98362069]
[1754922912196,0.71,180.21,180.05,55.42405389]
[1754922912414,6.21708453,180.33,180.05,55.42405389]
[1754922912415,5.54877372,180.22,180.06,26.0]
[1754922912615,6.21708453,180.36,180.11,26.0]
[1754922912616,5.5478502,180.25,180.11,26.0]
[1754922912932,9.42960792,180.36,180.17,9.42960792]
[1754922912933,0.71,180.24,180.17,9.42960792]
[1754922913127,0.71,180.24,180.18,42.26]
[1754922913626,5.54850978,180.23,180.14,5.55096386]
[1754922913799,9.42960792,180.18,180.15,42.46]
[1754922914002,0.71,180.17,180.15,42.52]
[1754922914311,0.71,180.19,180.15,42.52]
[1754922914510,10.13960792,180.19,180.15,42.52]
[1754922914823,0.71,180.18,180.15,42.52]
[1754922915112,9.42960792,180.16,180.15,42.52]
[1754922915287,10.13960792,180.16,180.15,42.52]
[1754922915489,5.55092978,180.15,180.06,14.98331224]
[1754922915686,0.71,180.14,180.1,26.0]
[1754922915890,0.71,180.13,180.1,26.0]
[1754922916128,15.10621557,180.21,180.1,26.0]
[1754922916129,0.71,180.2,180.12,9.42960792]
[1754922916425,9.42960792,180.13,180.11,68.8]
[1754922916592,0.71,180.16,180.11,68.8]
[1754922916910,9.42960792,180.13,180.11,68.8]
[1754922917114,9.42960792,180.12,180.11,68.8]
[1754922917417,34.52800125,180.21,180.11,68.8]
[1754922917418,0.71,180.16,180.11,68.8]
[1754922917720,9.42960792,180.13,180.11,68.8]
[1754922918014,10.13960792,180.12,180.11,42.8]
[1754922918200,15.10621557,180.18,180.08,42.84]
[1754922918201,41.10621557,180.18,180.08,42.84]
[1754922918520,9.42960792,180.15,180.07,68.84]
[1754922918698,9.42960792,180.14,180.08,43.2]
[1754922918893,0.71,180.16,180.09,9.42960792]
[1754922919119,20.65560513,180.2,180.1,9.42960792]
[1754922919331,0.71,180.22,180.15,9.42960792]
[1754922919529,10.13960792,180.22,180.16,43.24]
[1754922919693,10.13960792,180.22,180.16,52.66960792]
[1754922920022,9.42960792,180.24,180.19,26.0]
[1754922920199,0.71,180.29,180.23,26.0]
[1754922920399,0.71,180.29,180.24,43.46]
[1754922920622,5.5457181,180.32,180.27,26.0]
[1754922920791,9.42960792,180.29,180.27,26.0]
[1754922920998,0.71,180.31,180.27,26.0]
[1754922921202,5.5457181,180.32,180.27,26.0]
[1754922921499,0.71,180.31,180.27,26.0]
[1754922921710,0.71,180.3,180.27,26.0]
[1754922922113,0.71,180.3,180.19,13.87387265]
[1754922922114,0.71,180.29,180.16,5.55062166]
[1754922922602,0.71,180.29,180.21,26.0]
[1754922922801,20.65193367,180.32,180.21,69.86]
[1754922923113,0.71,180.3,180.21,69.86]
[1754922923309,6.2557181,180.32,180.21,69.86]
[1754922923514,9.42960792,180.28,180.23,9.42960792]
[1754922923816,9.42960792,180.28,180.22,5.54877372]
[1754922923817,9.42960792,180.27,180.21,31.54902578]
[1754922924000,0.71,180.27,180.22,43.92]
[1754922924206,9.42960792,180.25,180.24,26.0]
[1754922924429,10.13960792,180.25,180.21,43.9]
[1754922924722,15.10621557,180.31,180.21,43.9]
[1754922924926,10.13960792,180.27,180.22,9.42960792]
[1754922925231,9.42960792,180.27,180.22,9.42960792]
[1754922925389,9.42960792,180.27,180.21,69.9]
[1754922925390,14.97690884,180.27,180.21,69.9]
[1754922925596,9.42960792,180.24,180.21,69.9]
[1754922925799,0.71,180.26,180.21,69.9]
[1754922926013,9.42960792,180.25,180.21,69.9]
[1754922926224,140.0,180.3,180.21,69.9]
[1754922926225,0.71,180.28,180.21,69.9]
[1754922926391,9.42960792,180.27,180.21,79.32960792]
[1754922926716,9.42960792,180.25,180.21,69.9]
[1754922927094,0.71,180.28,180.21,69.9]
[1754922927415,0.71,180.28,180.21,84.87866131]
[1754922927623,151.24524426,180.34,180.21,75.44905339]
[1754922927811,0.71,180.31,180.24,26.0]
[1754922928020,9.42960792,180.25,180.2,26.0]
[1754922928212,10.13960792,180.25,180.21,70.14]
[1754922928406,9.42960792,180.24,180.21,70.14]
[1754922928609,0.71,180.25,180.21,70.14]
[1754922928808,9.42960792,180.24,180.21,44.14]
[1754922929118,9.42960792,180.22,180.21,44.14]
[1754922929628,0.67,180.25,180.21,44.14]
[1754922929918,9.42960792,180.23,180.21,44.14]
[1754922930124,5.54815801,180.24,180.21,44.14]
[1754922930125,9.42960792,180.22,180.21,44.14]
[1754922930311,5.54815801,180.24,180.19,44.08]
[1754922930509,145.7,180.28,180.19,44.08]
[1754922930510,6.21788288,180.25,180.19,44.08]
[1754922930708,9.42960792,180.23,180.19,44.08]
[1754922931026,5.54788288,180.25,180.19,44.08]
[1754922931197,5.5475743,180.26,180.2,9.42960792]
[1754922931410,145.7,180.28,180.25,9.42960792]
[1754922931606,145.7,180.33,180.27,9.42960792]
[1754922931902,151.91540732,180.33,180.28,44.06]
[1754922932103,9.42960792,180.3,180.26,44.06]
[1754922932546,0.67,180.32,180.26,44.06]
[1754922932700,5.54510786,180.34,180.28,9.42960792]
[1754922933101,9.42960792,180.33,180.27,9.42960792]
[1754922933337,9.42960792,180.34,180.29,9.42960792]
[1754922933510,9.42960792,180.34,180.3,44.02]
[1754922934062,5.64483285,180.35,180.3,44.02]
[1754922934211,0.1,180.35,180.3,44.02]
[1754922934531,0.67,180.34,180.3,44.02]
[1754922934719,0.1,180.35,180.3,44.02]
[1754922934922,9.42960792,180.34,180.3,44.02]
[1754922935241,6.31483629,180.35,180.3,44.02]
[1754922935242,5.64483629,180.35,180.3,44.02]
[1754922935831,5.64481481,180.35,180.3,44.02]
[1754922936018,15.07442273,180.35,180.3,44.02]
[1754922936442,9.42960792,180.34,180.3,44.02]
[1754922936743,9.42960792,180.33,180.3,44.02]
[1754922937333,5.64487271,180.35,180.3,44.02]
[1754922937334,9.42960792,180.34,180.3,44.02]
[1754922937547,0.1,180.35,180.3,44.02]
[1754922937829,9.42960792,180.32,180.3,44.02]
[1754922938037,9.42960792,180.33,180.3,44.02]
[1754922938423,0.67,180.34,180.3,44.02]
[1754922938621,9.42960792,180.33,180.3,49.56623243]
[1754922938832,0.1,180.35,180.3,49.56623243]
[1754922938833,9.42960792,180.34,180.3,49.56623243]
[1754922939048,9.42960792,180.32,180.3,44.02]
[1754922939214,10.09960792,180.33,180.3,44.02]
[1754922939553,0.1,180.35,180.3,44.02]
[1754922939715,0.67,180.34,180.3,44.02]
[1754922940045,9.42960792,180.33,180.3,44.02]
[1754922940337,0.67,180.34,180.3,44.02]
[1754922940634,9.42960792,180.33,180.3,44.02]
[1754922940846,0.67,180.34,180.3,44.02]
[1754922941013,0.67,180.32,180.26,35.42960792]
[1754922941215,6.31478819,180.35,180.3,26.0]
[1754922941515,9.42960792,180.34,180.31,43.88]
[1754922941709,0.77,180.35,180.31,43.88]
[1754922941952,9.42960792,180.34,180.31,43.88]
[1754922942246,6.31479645,180.35,180.31,43.88]
[1754922942540,5.64479645,180.35,180.31,43.88]
[1754922942735,0.1,180.35,180.31,43.88]
[1754922943042,9.42960792,180.33,180.31,43.88]
[1754922943222,0.1,180.35,180.27,26.0]
[1754922943553,0.67,180.34,180.28,58.81653492]
[1754922943726,10.09960792,180.34,180.28,58.81653492]
[1754922943915,9.42960792,180.32,180.29,0.5]
[1754922944117,0.67,180.33,180.3,43.8]
[1754922944317,0.67,180.32,180.3,43.8]
[1754922944517,9.42960792,180.31,180.3,43.8]
[1754922944711,0.67,180.34,180.3,43.8]
[1754922944947,5.64485028,180.35,180.29,0.5]
[1754922945120,10.09960792,180.33,180.31,43.8]
[1754922945441,10.09960792,180.32,180.29,0.5]
[1754922945739,14.97591962,180.3,180.29,0.5]
[1754922945937,15.64591962,180.3,180.29,0.5]
[1754922946317,0.1,180.35,180.29,0.5]
[1754922946522,0.67,180.32,180.29,0.5]
[1754922947045,9.42960792,180.3,180.29,0.5]
[1754922947351,10.09960792,180.31,180.29,0.5]
[1754922947514,6.21539041,180.33,180.29,0.5]
[1754922947711,0.67,180.33,180.29,0.5]
[1754922947910,9.42960792,180.31,180.29,0.5]
[1754922948154,0.67,180.3,180.29,0.5]
[1754922948316,10.09960792,180.3,180.29,0.5]
[1754922948739,9.42960792,180.3,180.29,0.5]
[1754922949143,10.09960792,180.3,180.29,0.5]
[1754922949517,0.67,180.3,180.29,0.5]
[1754922949835,6.2163117,180.3,180.29,0.5]
[1754922950042,15.64591962,180.3,180.29,0.5]
[1754922950229,15.64591962,180.3,180.24,43.9]
[1754922950433,9.42960792,180.25,180.24,43.9]
[1754922950747,9.42960792,180.25,180.2,5.54909054]
[1754922950748,10.09960792,180.25,180.2,43.9]
[1754922950927,9.42960792,180.21,180.14,14.98084584]
[1754922951256,0.67,180.24,180.17,9.42960792]
[1754922951461,9.42960792,180.22,180.17,9.42960792]
[1754922951616,9.42960792,180.2,180.15,49.45087487]
[1754922951823,9.42960792,180.2,180.15,84.88048279]
[1754922952134,9.42960792,180.2,180.15,58.88048279]
[1754922952324,9.42960792,180.21,180.15,58.88048279]
[1754922952522,9.42960792,180.21,180.16,9.42960792]
[1754922952719,0.67,180.2,180.15,43.9]
[1754922952938,140.67,180.23,180.15,58.88045332]
[1754922953132,140.67,180.23,180.13,31.5512924]
[1754922953133,0.67,180.22,180.13,31.5512924]
[1754922953450,9.42960792,180.21,180.16,9.42960792]
[1754922953648,9.42960792,180.2,180.15,9.42960792]
[1754922953817,9.42960792,180.17,180.12,9.42960792]
[1754922954026,9.42960792,180.16,180.13,43.84]
[1754922954325,6.21948231,180.2,180.13,43.84]
[1754922954531,9.42960792,180.15,180.13,43.84]
[1754922954940,9.42960792,180.16,180.13,43.84]
[1754922955642,5.55004941,180.18,180.13,43.84]
[1754922955840,9.42960792,180.14,180.13,43.84]
[1754922956141,9.42960792,180.14,180.12,43.76]
[1754922956345,9.42960792,180.13,180.12,43.76]
[1754922956567,0.67,180.16,180.12,43.76]
[1754922956738,9.42960792,180.13,180.12,43.76]
[1754922957046,10.09960792,180.13,180.06,0.06]
[1754922957249,0.67,180.13,180.08,43.76]
[1754922957544,14.98088742,180.14,180.09,9.42960792]
[1754922957745,9.42960792,180.13,180.08,58.74264597]
[1754922957948,0.67,180.15,180.09,9.42960792]
[1754922958136,5.55062166,180.16,180.09,9.42960792]
[1754922958330,5.55062166,180.16,180.08,49.31303805]
[1754922958538,9.42960792,180.14,180.09,9.42960792]
[1754922958720,9.42960792,180.11,180.08,43.76]
[1754922959049,9.42960792,180.09,180.08,43.76]
[1754922959227,9.42960792,180.1,180.08,43.76]
[1754922959733,5.55158006,180.13,180.08,43.76]
[1754922959734,9.42960792,180.11,180.08,43.76]
[1754922959929,140.0,180.13,180.08,49.31295126]
[1754922960129,149.42960792,180.13,180.08,58.74255918]
[1754922960351,9.42960792,180.09,180.06,0.06]
[1754922960548,9.42960792,180.07,180.06,0.06]
[1754922960747,10.08960792,180.07,180.04,0.06]
[1754922960967,41.10621557,180.11,180.02,0.06]
[1754922960968,24.53582349,180.05,180.02,0.06]
[1754922961161,9.42960792,180.03,180.02,0.06]
[1754922961686,10.08960792,180.03,180.02,0.06]
[1754922962763,25.19582349,180.03,180.02,0.06]
[1754922963444,6.21462978,180.03,180.02,0.06]
[1754922963651,15.6442377,180.03,180.02,0.06]
[1754922963961,6.21462978,180.03,180.02,0.06]
[1754922964268,15.6442377,180.03,180.02,0.06]
[1754922964576,145.7,180.05,180.02,0.06]
[1754922964949,0.66,180.07,180.02,0.06]
[1754922965254,9.42960792,180.05,180.02,0.06]
[1754922965455,9.42960792,180.06,180.03,0.5]
[1754922965650,0.66,180.07,180.03,0.5]
[1754922965850,9.42960792,180.06,180.03,0.5]
[1754922966788,0.66,180.11,180.04,9.42960792]
[1754922966949,0.66,180.14,180.08,9.42960792]
[1754922967152,0.66,180.14,180.09,9.42960792]
[1754922967153,10.08960792,180.14,180.09,9.42960792]
[1754922967345,0.66,180.14,180.09,9.42960792]
[1754922967584,10.08960792,180.14,180.09,9.42960792]
[1754922967752,0.66,180.14,180.09,9.42960792]
[1754922967962,145.7,180.15,180.1,9.42960792]
[1754922968193,155.12960792,180.15,180.1,9.42960792]
[1754922968374,145.7,180.15,180.12,9.42960792]
[1754922968684,145.7,180.18,180.14,9.42960792]
[1754922968879,155.12960792,180.18,180.13,53.04960792]
[1754922969188,145.7,180.18,180.14,9.42960792]
[1754922970168,145.7,180.18,180.13,49.17142243]
[1754922970169,0.66,180.17,180.13,53.04960792]
[1754922970588,145.7,180.18,180.14,9.42960792]
[1754922970900,9.42960792,180.15,180.1,26.0]
[1754922971188,9.42960792,180.13,180.1,69.54]
[1754922971388,9.42960792,180.15,180.1,78.96960792]
[1754922971607,15.6399915,180.17,180.12,9.42960792]
[1754922971787,10.08960792,180.16,180.11,9.42960792]
[1754922971971,9.42960792,180.13,180.1,26.0]
[1754922972168,0.66,180.12,180.1,69.5]
[1754922972489,10.08960792,180.12,180.1,43.5]
[1754922973088,0.66,180.12,180.1,43.5]
[1754922973290,10.08960792,180.12,180.1,43.5]
[1754922973597,5.55247084,180.1,180.08,43.46]
[1754922973773,9.42960792,180.09,180.08,43.46]
[1754922973973,10.08960792,180.09,180.08,43.46]
[1754922974367,0.66,180.09,180.08,43.46]
[1754922974562,5.55185431,180.12,180.08,43.46]
[1754922974788,9.42960792,180.1,180.08,43.46]
[1754922974989,0.66,180.1,180.08,43.46]
[1754922975167,9.42960792,180.09,180.08,43.46]
[1754922975680,13.87846717,180.14,180.08,43.46]
[1754922975681,0.66,180.17,180.08,53.00960792]
[1754922975890,10.08960792,180.2,180.15,9.42960792]
[1754922976074,10.08960792,180.2,180.15,52.82960792]
[1754922976595,140.66,180.19,180.15,52.82960792]
[1754922976788,140.66,180.19,180.11,26.0]
[1754922976789,9.42960792,180.16,180.11,26.0]
[1754922976968,9.42960792,180.13,180.11,43.36]
[1754922977168,9.42960792,180.14,180.11,43.36]
[1754922977797,9.42960792,180.14,180.1,9.42960792]
[1754922978100,9.42960792,180.14,180.11,43.36]
[1754922978408,6.21064205,180.16,180.11,43.36]
[1754922978567,14.21336216,180.15,180.11,43.36]
[1754922978768,0.66,180.15,180.09,19.76607484]
[1754922978994,14.21336216,180.13,180.1,43.3]
[1754922979206,14.87336216,180.15,180.11,43.3]
[1754922979369,14.87336216,180.15,180.1,14.21336216]
[1754922979370,14.21336216,180.12,180.07,14.21336216]
[1754922979570,14.21336216,180.12,180.08,43.3]
[1754922979767,20.42530845,180.12,180.08,43.3]
[1754922979998,14.21336216,180.1,180.08,43.3]
[1754922980492,14.21336216,180.1,180.09,0.5]
[1754922981387,20.425833,180.1,180.09,0.5]
[1754922981590,0.66,180.1,180.08,43.3]
[1754922981781,145.7,180.11,180.08,57.51336216]
[1754922981981,5.55031359,180.17,180.1,14.21336216]
[1754922982210,14.21336216,180.15,180.1,14.21336216]
[1754922982384,6.21031359,180.17,180.11,14.21336216]
[1754922982693,0.66,180.17,180.13,14.21336216]
[1754922982898,145.7,180.18,180.16,14.21336216]
[1754922983097,0.03,180.22,180.16,14.21336216]
[1754922983098,0.03,180.22,180.17,14.21336216]
[1754922983279,0.03,180.22,180.18,43.28]
[1754922983479,0.03,180.22,180.19,14.21336216]
[1754922983686,14.90336216,180.22,180.18,43.28]
[1754922984094,0.69,180.22,180.18,43.28]
[1754922984317,0.66,180.21,180.18,43.28]